Workbook

Sheet presentation
B3: Bonjour,
B5: Voici une application qui permet de présenter un Bilan en fonction de la balance
B7: Les boutons sont accessibles par un clic droit dans tout le classeur.
B9: En onglet Balance, vous avez les paramétrages des correspondances entre les comptes de la balance et les postes du bilan.
B11: Vous pouvez les modifier et apporter des modifications sur les lignes de sous-totaux.
B13: Un bouton vous permet de masquer ou démasquer les colonnes de comptes dans le bilan.
B15: Bonne utilisation

Sheet Balance
A1: N° | B1: Intitulés comptes Balance | C1: Soldes N | E1: Ordre | F1: Actif passif | G1: Postes du Bilan | H1: compte | I1: compte | J1: Sens | K1: Soldes N
C2: Débiteur | D2: Créditeur | H2: début | I2: fin | K2: Débiteur | L2: Créditeur
A3: 101000 | B3: Capital social | D3: 400000 | E3: P2 | F3: Passif | G3: Capital social | H3: 101000 | I3: 108000 | J3: C | L3: =+D3 -> 400000
A4: 108000 | B4: compte de l'exploitant
A5: 111000 | B5: Réserve légale | D5: 105000 | E5: P3 | F5: Passif | G5: Réserves | H5: 111000 | I5: 111999 | J5: C | L5: =+D5 -> 105000
A6: 121000 | B6: Résultats reportés
A7: 130000 | B7: Résultat de l'exercice | D7: 125000 | E7: P6 | F7: Passif | G7: résultat de l'exercice | H7: 120000 | I7: 130000 | J7: C | L7: =+D7 -> 125000
A8: 150000 | B8: Provisions pour risque
A9: 162000 | B9: Emprunts auprès des établissements financiers | D9: 133000 | E9: P10 | F9: Passif | G9: Emprunts | H9: 160000 | I9: 169999 | J9: C | L9: =+D9 -> 133000
A10: 168100 | B10: Autres emprunts
A11: 167000 | B11: Dépôts et cautionnements reçus
A12: 205000 | B12: Logiciels | C12: 20000
A13: 207000 | B13: Fonds commercial | C13: 80000 | E13: A2 | F13: Actif | G13: Immobilisations incorporelles | H13: 201000 | I13: 209999 | J13: D | K13: =+C12+C13 -> 100000
A14: 206000 | B14: Droit au bail
A15: 212000 | B15: Concessions de marques, brevêts...
A16: 221000 | B16: Terrains | C16: 130000
A17: 222000 | B17: Constructions | C17: 150000 | E17: A5 | F17: Actif | G17: Immobilisations corporelles | H17: 210000 | I17: 229999 | J17: D | K17: =+SUM(C16:C20) -> 470000
A18: 223000 | B18: Installations, .techniques, matériel et outillage industriels | C18: 50000
A19: 224000 | B19: Matériel de transport | C19: 100000
A20: 228200 | B20: Equipements de bureau | C20: 40000
A21: 251000 | B21: Titres de participations | C21: 10000 | E21: A8 | F21: Actif | G21: Immobilisations financières | H21: 251000 | I21: 264000 | J21: D | K21: =+SUM(C21:C22) -> 18500
A22: 264000 | B22: Prêts | C22: 8500
A23: 271000 | B23: Frais préliminaires
A24: 272000 | B24: Charges à répartir
A25: 281300 | B25: Amortissements des logiciels | D25: 6000 | E25: A3 | F25: Actif | G25: amorts immob incorporelles | H25: 281300 | I25: 281400 | J25: C | K25: =-D25-D26 -> -14000
A26: 281400 | B26: Amortissements des fonds commerciales | D26: 8000
A27: 282200 | B27: Amortissements des constructions | D27: 7500
A28: 282300 | B28: Amortissements des ITMOI | D28: 10000 | E28: A6 | F28: Actif | G28: amorts immob corporelles | H28: 282200 | I28: 282999 | J28: C | K28: =-SUM(D27:D30) -> -37000
A29: 282400 | B29: Amortissements du matériel de transport | D29: 18000
A30: 282820 | B30: Amortissements des équipements de bureau | D30: 1500
A31: 295100 | B31: Provisions pour dépréciation des titres de participation | D31: 2000 | E31: A9 | F31: Actif | G31: prov immob financieres | H31: 295100 | I31: 297000 | J31: C | K31: =-D31 -> -2000
A32: 310000 | B32: Stocks de matières premières et fournitures liées | C32: 80000
A33: 320000 | E33: A16 | F33: Actif | G33: Stocks | H33: 310000 | I33: 359999 | J33: D | K33: =+C32+C34 -> 170000
A34: 350000 | B34: Stock de produits | C34: 90000
A35: 370000
A36: 391000 | B36: Provision des stocks de matières premières | D36: 4000
A37: 392000 | E37: A17 | F37: Actif | G37: provisions depr stocks | H37: 391000 | I37: 395999 | J37: C | K37: =-D36-D38 -> -7500
A38: 395000 | B38: Provision des stocks de produits finis | D38: 3500
A39: 397000
A40: 401000 | B40: Fournisseurs d'exploitation | D40: 34000
A41: 403000 | B41: Fournisseurs d'exploitation - effets à payer
A42: 404000 | B42: Fournisseurs d'immobilisation | D42: 40000 | E42: P16 | F42: Passif | G42: fournisseurs et cptes rattachés | H42: 401000 | I42: 409000 | J42: C | L42: =+SUM(D40:D44) -> 99000
A43: 405000 | B43: Fournisseurs d'immobilisation - effets à payer | D43: 25000
A44: 408000 | B44: Fournisseurs factures non parvenues
A45: 409000 | B45: Fournisseurs débiteurs
A46: 411000 | B46: Clients | C46: 80000
A47: 413000 | B47: clients effets à recevoir
A48: 416000 | B48: clients douteux ou litigieux | E48: A19 | F48: Actif | G48: Clients et comptes rattachés | H48: 410000 | I48: 419999 | J48: D | K48: =+C46 -> 80000
A49: 418000 | B49: Clients, produits non encore facturés
A50: 419000 | B50: Clients créditeurs
A51: 421000 | B51: Personnel - avances et acomptes
A52: 425000 | B52: Personnel - rémunérations dues
A53: 427000 | B53: Personnel - oppositions
A54: 432000 | B54: etat impôts et taxes retenus à la source
A55: 436600 | B55: Etat, taxes/C A déductibles
A56: 436700 | B56: Etat, taxes/C A collectées | E56: P17 | F56: Passif | G56: Autres passifs courants (crédits) | H56: 421000 | I56: 489999 | J56: C | L56: =+D58+D62 -> 26000
A57: 436800
A58: 453000 | B58: sécurité sociale et autes organismes sociaux | D58: 18000
A59: 458700 | B59: Produits à reçevoir
A60: 486000 | B60: Charges constatées d’avance | C60: 7500 | E60: A22 | F60: Actif | G60: Autres actifs courants (débits) | H60: 486000 | I60: 486999 | J60: D | K60: =+C60 -> 7500
A61: 472000 | B61: Produits constatés d’avance
A62: 480000 | B62: Provisions courantes pour risques et charges | D62: 8000
A63: 491000 | B63: Provisions pour dépréciation des comptes clients | D63: 4000 | E63: A20 | F63: Actif | G63: prov depr cptes clients | H63: 490000 | I63: 496000 | J63: C | K63: =-D63 -> -4000
A64: 501000 | B64: Emprunts courants liés au cycle d’exploitation
A65: 505000 | B65: Echéances à moins d’un an sur emprunts non courants | D65: 12000
A66: 506000 | B66: Concours bancaires | D66: 9000 | E66: P18 | F66: Passif | G66: Concours bancaires et autres passifs financiers | H66: 505000 | I66: 532000 | J66: C | L66: =+SUM(D65:D73) -> 32000
A67: 508000 | B67: Intérêts courus sur emprunts | D67: 3000
A68: 516000 | B68: Echéances à moins d’un an sur prets non courants | C68: 2000
A69: 520000 | B69: Placements courants | C69: 18000
A70: 531200 | B70: chèques à encaisser
A71: 531300 | B71: Effets à l’escompte | C71: 6000
A72: 531400 | B72: Effets à l’encaissement | C72: 7500 | E72: A23 | F72: Actif | G72: Placements et autres actifs financiers | H72: 516000 | I72: 520000 | J72: D | K72: =+C68+C69-D71 -> 20000
A73: 532000 | B73: Banques | C73: 84500 | D73: 8000
A74: 540000 | B74: Caisse | C74: 24000 | E74: A25 | F74: Actif | G74: Liquidités | H74: 531300 | I74: 540000 | J74: D | K74: =+SUM(C70:C74) -> 122000
A75: 592000 | B75: Provisions sur les placements courants | D75: 3500 | E75: A24 | F75: Actif | G75: Provison Actif circulant | H75: 592000 | I75: 592999 | J75: C | K75: =-D75 -> -3500
B76: Total | C76: =SUM(C3:C75) -> 988000 | D76: =SUM(D3:D75) -> 988000 | G76: Total | K76: =SUM(K3:K75) -> 920000 | L76: =SUM(L3:L75) -> 920000 | M76: =+K76-L76 -> 0
D77: =+C76-D76 -> 0 | E77: P1
E78: P4 | G78: Résultats reportés
E79: P5 | G79: Total des capitaux propres avant résultat de l'exercice | L79: tot
E80: P7 | G80: total des capitaux propres avant affectation | L80: tot
E81: P8
E82: P9 | G82: Passifs non courants
E83: P11 | G83: Autres passifs financiers
E84: P12 | G84: Provisions
E85: P13 | G85: Total des passifs non courants | L85: tot
E86: P14
E87: P15 | G87: Passifs courants
E88: P19 | G88: Total des passifs courants | L88: tot
E89: P20
E90: P21
E91: P22
E92: P23
E93: P24
E94: P25
E95: P26
E96: P27 | G96: Total des cap. Prop. Et passifs | L96: tot
E97: A1 | G97: Actifs immobilisés
E98: A4 | G98: Sous-total | K98: tot
E99: A7 | G99: Sous-total | K99: tot
E100: A10 | G100: Sous-total | K100: tot
E101: A11
E102: A12 | G102: Total des actifs non courants | K102: tot
E103: A13
E104: A14 | G104: Actifs courants
E105: A15 | G105: Sous-total | K105: tot
E106: A18 | G106: Sous-total | K106: tot
E107: A21 | G107: Sous-total | K107: tot
E108: A26 | G108: Total des actifs courants | K108: tot
E109: A27 | G109: Total des actifs | K109: tot

Sheet Bilan
A1: Ordre1 | B1: Ordre2 | C1: Postes du Bilan | D1: compte | E1: compte | F1: Sens | G1: Notes | H1: Montants | I1: Ordre1 | J1: Ordre2 | K1: Postes du Bilan | L1: compte | M1: compte | N1: Sens | O1: Notes | P1: Montants
D2: debut | E2: fin | L2: debut | M2: fin
A3: A | B3: 1 | C3: Actifs immobilisés | I3: P | J3: 1
A4: A | B4: 2 | C4: Immobilisations incorporelles | D4: 201000 | E4: 209999 | F4: D | H4: 100000 | I4: P | J4: 2 | K4: Capital social | L4: 101000 | M4: 108000 | N4: C | P4: 400000
A5: A | B5: 3 | C5: amorts immob incorporelles | D5: 281300 | E5: 281400 | F5: C | H5: -14000 | I5: P | J5: 3 | K5: Réserves | L5: 111000 | M5: 111999 | N5: C | P5: 105000
A6: A | B6: 4 | C6: Sous-total | H6: =H4+H5 -> 86000 | I6: P | J6: 4 | K6: Résultats reportés
A7: A | B7: 5 | C7: Immobilisations corporelles | D7: 210000 | E7: 229999 | F7: D | H7: 470000 | I7: P | J7: 5 | K7: Total des capitaux propres avant résultat de l'exercice | P7: =P6+P5+P4 -> 505000
A8: A | B8: 6 | C8: amorts immob corporelles | D8: 282200 | E8: 282999 | F8: C | H8: -37000 | I8: P | J8: 6 | K8: résultat de l'exercice | L8: 120000 | M8: 130000 | N8: C | P8: 125000
A9: A | B9: 7 | C9: Sous-total | H9: =H7+H8 -> 433000 | I9: P | J9: 7 | K9: total des capitaux propres avant affectation | P9: =P8+P7 -> 630000
A10: A | B10: 8 | C10: Immobilisations financières | D10: 251000 | E10: 264000 | F10: D | H10: 18500 | I10: P | J10: 8
A11: A | B11: 9 | C11: prov immob financieres | D11: 295100 | E11: 297000 | F11: C | H11: -2000 | I11: P | J11: 9 | K11: Passifs non courants
A12: A | B12: 10 | C12: Sous-total | H12: =H10+H11 -> 16500 | I12: P | J12: 10 | K12: Emprunts | L12: 160000 | M12: 169999 | N12: C | P12: 133000
A13: A | B13: 11 | I13: P | J13: 11 | K13: Autres passifs financiers
A14: A | B14: 12 | C14: Total des actifs non courants | H14: =H12+H9+H6 -> 535500 | I14: P | J14: 12 | K14: Provisions
A15: A | B15: 13 | I15: P | J15: 13 | K15: Total des passifs non courants | P15: =P14+P13+P12 -> 133000
A16: A | B16: 14 | C16: Actifs courants | I16: P | J16: 14
A17: A | B17: 15 | C17: Sous-total | H17: =H15+H16 -> 0 | I17: P | J17: 15 | K17: Passifs courants
A18: A | B18: 16 | C18: Stocks | D18: 310000 | E18: 359999 | F18: D | H18: 170000 | I18: P | J18: 16 | K18: fournisseurs et cptes rattachés | L18: 401000 | M18: 409000 | N18: C | P18: 99000
A19: A | B19: 17 | C19: provisions depr stocks | D19: 391000 | E19: 395999 | F19: C | H19: -7500 | I19: P | J19: 17 | K19: Autres passifs courants (crédits) | L19: 421000 | M19: 489999 | N19: C | P19: 26000
A20: A | B20: 18 | C20: Sous-total | H20: =H18+H19 -> 162500 | I20: P | J20: 18 | K20: Concours bancaires et autres passifs financiers | L20: 505000 | M20: 532000 | N20: C | P20: 32000
A21: A | B21: 19 | C21: Clients et comptes rattachés | D21: 410000 | E21: 419999 | F21: D | H21: 80000 | I21: P | J21: 19 | K21: Total des passifs courants | P21: =P20+P19+P18 -> 157000
A22: A | B22: 20 | C22: prov depr cptes clients | D22: 490000 | E22: 496000 | F22: C | H22: -4000 | I22: P | J22: 20
A23: A | B23: 21 | C23: Sous-total | H23: =H21+H22 -> 76000 | I23: P | J23: 21
A24: A | B24: 22 | C24: Autres actifs courants (débits) | D24: 486000 | E24: 486999 | F24: D | H24: 7500 | I24: P | J24: 22
A25: A | B25: 23 | C25: Placements et autres actifs financiers | D25: 516000 | E25: 520000 | F25: D | H25: 20000 | I25: P | J25: 23
A26: A | B26: 24 | C26: Provison Actif circulant | D26: 592000 | E26: 592999 | F26: C | H26: -3500 | I26: P | J26: 24
A27: A | B27: 25 | C27: Liquidités | D27: 531300 | E27: 540000 | F27: D | H27: 122000 | I27: P | J27: 25
A28: A | B28: 26 | C28: Total des actifs courants | H28: =H27+H26+H25++H24+H23+H20 -> 384500 | I28: P | J28: 26
A29: A | B29: 27 | C29: Total des actifs | H29: =H28+H14 -> 920000 | I29: P | J29: 27 | K29: Total des cap. Prop. Et passifs | P29: =P21+P15+P9 -> 920000
